[Event "55th Biel Festival GMT Classical 2022"]
[Site "Biel"]
[Date "2022.07.21"]
[Round "6.4"]
[White "Keymer, Vincent"]
[Black "Salem, A.R. Saleh"]
[Result "1/2-1/2"]
[ECO "D36"]
[WhiteElo "2686"]
[BlackElo "2684"]
[Annotator "TA"]
[PlyCount "130"]
[EventDate "2022.07.14"]
[EventType "tourn"]
[EventCountry "SUI"]
[SourceTitle "playchess.com"]
[Source "ChessBase"]
[SourceQuality "1"]
[TimeControl "40/6000+30:20/3000+30:900+30"]

{[%evp 19,130,16,16,6,17,11,25,29,38,28,38,39,41,35,40,47,71,70,127,129,118,54,56,51,47,60,51,56,77,82,72,90,130,46,129,53,142,131,134,149,156,155,144,145,140,145,147,146,133,147,141,146,179,186,196,190,200,187,194,145,160,169,177,0,137,0,173,135,155,107,108,0,0,0,0,0,0,0,0,0,0,0,42,39,46,39,47,48,81,29,59,38,27,0,0,0,0,0,0,0,0,0,0,0,0,0,0,0,0,0,0,0,0]} 1. d4 {[%emt 0:00:44]} Nf6 {[%emt 0:00:18]} 2. c4 {[%emt 0:00:04]} e6 {[%emt 0:00:04]} 3. Nf3 {[%emt 0:00:04]} d5 {[%emt 0:00:07]} 4. Nc3 {[%emt 0:00:04]} Nbd7 {[%emt 0:00:05]} 5. cxd5 {[%emt 0:00:05]} exd5 {[%emt 0:00:10]} 6. Qc2 {[%emt 0:00:03]} c6 {[%emt 0:00:41]} 7. Bg5 {[%emt 0:00:05]} h6 {[%emt 0:00:21]} 8. Bh4 {[%emt 0:00:05]} Be7 {[%emt 0:00:05]} 9. e3 {[%emt 0:00:04]} O-O {[%emt 0:00:11]} 10. Bd3 {[%emt 0:00:04]} Re8 {[%emt 0:00:06]} 11. Nd2 {[%emt 0:00:13] D36: Queen's Gambit Declined: Exchange Variation: Main line (5 Bg5 c6 6 Qc2).} Nf8 {[%emt 0:03:41]} 12. h3 {[%emt 0:01:01]} Bd6 {[%emt 0:04:44]} 13. Ne2 {[%emt 0:01:26] [#] White has an edge.} Bd7 $146 {[%emt 0:04:38]} ({Predecessor:} 13... g5 14. Bg3 Ne6 15. Bxd6 Qxd6 16. Nb3 b6 17. Rc1 Bd7 18. Bf5 Rac8 19. O-O Nf8 {1-0 (34) De Wolf,K-Minaux,G Vlissingen 1996}) 14. O-O {[%emt 0:02:15]} Ne6 {[%emt 0:07:41]} 15. Nf3 {[%emt 0:07:00]} Nf8 {[%emt 0:02:57]} 16. Rae1 {[%emt 0:19:45]} Rc8 {[%emt 0:02:07]} 17. Nc3 {[%emt 0:04:32]} Be6 {[%emt 0:28:39]} 18. Ne5 {[%emt 0:03:02]} c5 {[%emt 0:09:15]} (18... Be7 $14) 19. Bb5 $16 {[%emt 0:07:35]} Re7 {[%emt 0:00:15]} 20. Bxf6 {[%emt 0:13:15] White is much more active.} (20. f4 $1 $16) 20... gxf6 $14 {[%emt 0:00:02]} 21. Nf3 {[%emt 0:05:31]} c4 $1 {[%emt 0:08:38] Inhibits Bd3.} 22. e4 {[%emt 0:04:55]} Bb4 {[%emt 0:01:23]} 23. Ba4 {[%emt 0:05:30]} dxe4 {[%emt 0:05:18]} 24. Nxe4 {[%emt 0:01:27][%cal Bc3e4,Be4g3,Bg3h5][%mdl 32]} Kg7 {[%emt 0:06:14]} 25. Re3 {[%emt 0:02:20]} Ng6 {[%emt 0:00:05]} 26. Qc1 {[%emt 0:03:08]} ({White should try} 26. Ng3 $1 $16 {[%cal Rg3h5]}) 26... Qd5 {[%emt 0:07:46] [#]} ({Black should play} 26... Bd6 $14) 27. Bc2 {[%emt 0:04:21]} (27. Ng3 $1 $16) 27... f5 {[%emt 0:02:52] [#]} (27... Bd6 $14) 28. Ng3 $1 $16 {[%emt 0:01:58]} (28. Nc3 Qd6 $16) 28... f4 {[%emt 0:04:11] [#]} 29. Re5 $1 {[%emt 0:03:05][%mdl 512]} Nxe5 {[%emt 0:00:05]} 30. Nh5+ {[%emt 0:00:03]} Kf8 {[%emt 0:00:46]} 31. dxe5 {[%emt 0:00:09]} Bd2 {[%emt 0:00:08]} 32. Qxd2 {[%emt 0:04:20]} Qxd2 {[%emt 0:00:06]} 33. Nxd2 {[%emt 0:00:04] Pair of Knights!} c3 {[%emt 0:00:13]} 34. bxc3 {[%emt 0:00:04]} Rxc3 {[%emt 0:00:53]} 35. Bb1 {[%emt 0:01:37]} Ra3 {[%emt 0:08:15]} 36. Rc1 {[%emt 0:06:28]} Bxa2 {[%emt 0:00:43]} 37. Bxa2 {[%emt 0:05:19]} (37. Nxf4 $6 Rxe5 38. Be4 b6 $14) 37... Rxa2 {[%emt 0:00:02]} 38. Nf3 {[%emt 0:00:05]} Ra6 {[%emt 0:02:43]} 39. Rc8+ {[%emt 0:05:35]} Re8 {[%emt 0:00:02]} 40. Rc7 {[%emt 0:00:06]} Re7 {[%emt 0:00:16]} 41. Rc8+ {[%emt 0:10:32]} Re8 {[%emt 0:00:00]} 42. Rc7 {[%emt 0:00:02]} Re7 $1 {[%emt 0:00:44]} 43. Rc4 {[%emt 0:00:09]} b5 {[%emt 0:05:29]} 44. Rd4 {[%emt 0:00:46]} (44. Rxf4 $142 {And now Nf6 would win.} Ra4 45. Rf6) 44... Rb7 {[%emt 0:11:46]} 45. Nh4 {[%emt 0:13:40]} ({Don't play} 45. Nxf4 $6 b4 $11) (45. Nf6 $16 {Rd8+ would kill now.} Ke7 46. Rd3 (46. Rxf4 b4 $14)) 45... b4 $1 $11 {[%emt 0:15:19] aiming for ...b3.} 46. Nf6 {[%emt 0:03:43] White wants to mate with Rd8+.} ({Wrong is} 46. Rxf4 $2 b3 47. Kh2 b2 $19) 46... Ke7 {[%emt 0:01:40] Inhibits Rd8. Strongly threatening ...b3.} 47. Nd5+ {[%emt 0:02:29]} (47. Rxf4 $2 b3 48. Nd5+ Ke8 $19) 47... Ke6 {[%emt 0:00:53]} 48. Nxf4+ {[%emt 0:00:13]} Kxe5 {[%emt 0:00:37]} 49. Nf3+ {[%emt 0:00:04]} Kf6 {[%emt 0:00:24]} 50. Nd5+ {[%emt 0:00:09]} Kg7 {[%emt 0:01:26] ...b3 is the strong threat.} 51. Nxb4 {[%emt 0:01:16]} Ra4 {[%emt 0:05:39]} 52. Nc6 {[%emt 0:00:46]} Rxd4 {[%emt 0:02:55]} 53. Nfxd4 {[%emt 0:00:08]} ({But not} 53. Ncxd4 Rb1+ 54. Kh2 a5 $15) 53... a6 {[%emt 0:01:16]} 54. g3 {[%emt 0:02:12]} (54. Kf1 $16) 54... Rd7 {[%emt 0:01:33][%cal Oa6a5]} 55. Kf1 {[%emt 0:11:08]} a5 {[%emt 0:00:08]} 56. Nf5+ {[%emt 0:04:00]} Kh7 {[%emt 0:01:58] The position is equal.} 57. Nxa5 {[%emt 0:00:06] Threatens to win with Nc6.} Rd5 {[%emt 0:00:03][%csl LRa5,LRf5]} 58. Nxh6 {[%emt 0:00:08]} Kxh6 {[%emt 0:00:04][%mdl 4096] Endgame KR-KN} 59. Nc4 {[%emt 0:00:04]} f5 {[%emt 0:02:12]} 60. Ne3 {[%emt 0:00:58]} Rb5 {[%emt 0:00:05]} 61. Kg2 {[%emt 0:15:36]} Kg6 {[%emt 0:15:07]} 62. Nc2 {[%emt 0:02:26]} Kf6 {[%emt 0:00:08]} (62... Rb2 $5 {[%cal Rb2c2]} 63. Ne3 Kf6 $11) 63. g4 {[%emt 0:03:02]} fxg4 {[%emt 0:00:12]} 64. hxg4 {[%emt 0:00:04]} Rb3 {[%emt 0:01:19]} 65. Ne3 {[%emt 0:01:00]} Ke5 {[%emt 0:00:44] Weighted Error Value: White=0.17 (very precise) /Black=0.09 (flawless)} 1/2-1/2

[Event "55th Biel Festival GMT Classical 2022"]
[Site "Biel"]
[Date "2022.07.22"]
[Round "7.1"]
[White "Salem, A.R. Saleh"]
[Black "Gukesh D"]
[Result "1-0"]
[ECO "E16"]
[WhiteElo "2684"]
[BlackElo "2684"]
[Annotator "TA"]
[PlyCount "113"]
[EventDate "2022.07.14"]
[EventType "tourn"]
[EventCountry "SUI"]
[SourceTitle "playchess.com"]
[Source "ChessBase"]
[SourceQuality "1"]
[TimeControl "40/6000+30:20/3000+30:900+30"]

{[%evp 15,113,-7,-7,-16,0,0,0,0,0,0,0,0,0,0,7,14,16,0,0,0,34,-17,0,-33,0,-25,0,0,0,-61,0,0,0,0,0,0,0,0,0,0,0,0,0,0,0,0,0,0,0,0,170,175,242,192,239,220,231,218,226,176,159,183,164,195,179,182,189,179,168,164,158,177,227,173,315,322,303,318,318,256,329,318,307,325,665,652,1062,1036,974,945,970,0,0,0,1077,1066,917,898,824,802]} 1. d4 {[%emt 0:00:03]} Nf6 {[%emt 0:01:18]} 2. c4 {[%emt 0:00:06]} e6 {[%emt 0:00:29]} 3. g3 {[%emt 0:00:06]} d5 {[%emt 0:01:06]} 4. Bg2 {[%emt 0:00:07]} Bb4+ {[%emt 0:00:55]} 5. Nd2 {[%emt 0:00:09]} O-O {[%emt 0:00:22]} 6. Ngf3 {[%emt 0:00:05]} b6 {[%emt 0:02:43]} 7. O-O {[%emt 0:00:08]} Bb7 {[%emt 0:00:04]} 8. cxd5 {[%emt 0:00:12]} exd5 {[%emt 0:00:07]} (8... Qxd5 $2 9. Ne1 $18) 9. Nb1 $5 {[%emt 0:00:06][%mdl 4] An interesting side line. E16: Queen's Indian: 4 g3 Bb7 5 Bg2 Bb4+.} Nbd7 {[%emt 0:06:19]} 10. Qb3 {[%emt 0:00:33]} Bd6 {[%emt 0:02:11]} 11. Nc3 {[%emt 0:00:07] The position is equal.} Re8 {[%emt 0:06:21] [#]} 12. Bg5 $146 {[%emt 0:02:28]} ({Predecessor:} 12. Bf4 Bxf4 13. gxf4 c5 14. e3 cxd4 15. Nxd4 Nc5 16. Qc2 Nfe4 17. Rad1 Rc8 18. Rfe1 {1-0 (98) Sarana,A (2654)-Nihal,S (2620) Chess.com INT 2020}) 12... h6 {[%emt 0:00:43]} 13. Bf4 {[%emt 0:00:07]} Bxf4 {[%emt 0:02:45]} 14. gxf4 {[%emt 0:00:26]} Ne4 {[%emt 0:08:33]} 15. e3 {[%emt 0:06:13]} c5 {[%emt 0:05:22]} 16. Rfd1 {[%emt 0:04:56]} (16. Nxd5 cxd4 17. exd4 (17. Nxd4 $2 Ndc5 $19) 17... Ndc5 $1 18. dxc5 Nxc5 $17) 16... c4 {[%emt 0:03:32]} 17. Qc2 {[%emt 0:01:12]} Rc8 {[%emt 0:01:25]} 18. Bh3 {[%emt 0:07:46]} (18. Ne5 $14) 18... Rc7 {[%emt 0:13:54]} 19. Kh1 {[%emt 0:01:34]} Ndf6 {[%emt 0:01:45]} 20. Ne5 {[%emt 0:08:38]} Bc8 {[%emt 0:00:38]} 21. Bxc8 {[%emt 0:03:22]} Qxc8 {[%emt 0:00:29]} 22. Rg1 {[%emt 0:04:57]} (22. f3 $11 Nxc3 23. bxc3) 22... Nd6 {[%emt 0:02:04]} ({Black should play} 22... Nxc3 $15 23. bxc3 Ne4) 23. Rg2 {[%emt 0:03:42]} Qf5 {[%emt 0:07:46]} 24. Qa4 {[%emt 0:01:08]} Kh7 {[%emt 0:06:24]} 25. Rag1 {[%emt 0:07:24]} g6 {[%emt 0:00:07]} 26. f3 {[%emt 0:03:16]} Ree7 {[%emt 0:02:24]} 27. a3 {[%emt 0:17:34]} a5 {[%emt 0:06:58][%cal Ba7a5,Ba5b4,Bb4b3][%mdl 32]} 28. Qd1 {[%emt 0:05:52]} b5 {[%emt 0:04:30]} 29. Qe1 {[%emt 0:00:05]} b4 {[%emt 0:11:14]} 30. axb4 {[%emt 0:00:05]} axb4 {[%emt 0:00:01]} 31. Na2 {[%emt 0:00:05]} b3 {[%emt 0:01:15]} 32. Nc3 {[%emt 0:00:06]} Qh3 $2 {[%emt 0:04:18]} (32... Kg7 $11) 33. e4 $1 $36 {[%emt 0:04:49][%mdl 2048] Black is under strong pressure.} Re8 {[%emt 0:00:05]} (33... dxe4 {was worth a try.} 34. fxe4 Rb7) 34. Rg3 {[%emt 0:06:39]} Qh4 {[%emt 0:00:20]} (34... Qc8 $142) 35. f5 $1 {[%emt 0:05:02]} dxe4 {[%emt 0:05:03]} 36. fxg6+ {[%emt 0:07:10]} fxg6 {[%emt 0:00:02]} 37. Rxg6 {[%emt 0:05:27] Dancing on a razor blade.} Qxe1 {[%emt 0:00:01]} 38. Rxe1 {[%emt 0:00:05]} Rf8 {[%emt 0:01:07]} 39. fxe4 {[%emt 0:00:06]} Rg7 {[%emt 0:02:13]} 40. Rxg7+ {[%emt 0:02:27]} Kxg7 {[%emt 0:00:01]} 41. Rg1+ {[%emt 0:10:52]} Kh7 {[%emt 0:00:00]} 42. Rf1 {[%emt 0:00:05] And now Nc6 would win.} Kg7 {[%emt 0:01:57]} 43. Kg2 {[%emt 0:00:09]} h5 {[%emt 0:14:11]} (43... Nfxe4 $142 44. Rxf8 Kxf8 45. Nxe4 Nxe4) 44. Rf2 {[%emt 0:09:52]} Ra8 {[%emt 0:03:38]} (44... h4 $142 45. Kh3 (45. Rf4 Ra8 $16) 45... Ra8 46. Rg2+ Kf8) 45. Kf3 $1 {[%emt 0:00:05]} Ra1 {[%emt 0:00:35]} 46. Rg2+ {[%emt 0:01:48]} Kh7 {[%emt 0:02:08]} 47. Kf4 {[%emt 0:11:32] Nf3 is the strong threat.} Rc1 {[%emt 0:02:35] [#]} 48. Nf3 $1 {[%emt 0:00:35]} Rc2 {[%emt 0:03:56] [#]} 49. Rg1 {[%emt 0:02:34]} Kh6 $2 {[%emt 0:05:50]} (49... Nde8 50. e5 Nd7) 50. e5 {[%emt 0:10:17][%csl LRd6,LRf6]} Rxc3 {[%emt 0:00:05]} 51. exd6 {[%emt 0:00:03][%mdl 4096] Endgame KRN-KRN} ({Stronger than} 51. bxc3 Nd5+ 52. Kg3 Ne4+ 53. Kh4 Ndxc3 $19) 51... Rd3 {[%emt 0:01:41]} 52. Rc1 {[%emt 0:00:34]} Nd5+ {[%emt 0:05:03]} 53. Ke4 {[%emt 0:00:11]} Nf6+ {[%emt 0:00:14]} 54. Kf4 {[%emt 0:00:04]} Nd5+ $1 {[%emt 0:00:04]} 55. Ke5 {[%emt 0:00:04] White is clearly winning.} Nb6 {[%emt 0:00:19]} 56. Ke4 {[%emt 0:00:06]} Kg7 {[%emt 0:00:10]} 57. d7 {[%emt 0:00:57] Weighted Error Value: White=0.21 (precise) /Black=0.33} 1-0

[Event "55th Biel Festival GMT Classical 2022"]
[Site "Biel"]
[Date "2022.07.22"]
[Round "7.2"]
[White "Naiditsch, Arkadij"]
[Black "Keymer, Vincent"]
[Result "1-0"]
[ECO "B92"]
[WhiteElo "2664"]
[BlackElo "2686"]
[Annotator "TA"]
[PlyCount "82"]
[EventDate "2022.07.14"]
[EventType "tourn"]
[EventCountry "SUI"]
[SourceTitle "playchess.com"]
[Source "ChessBase"]
[SourceQuality "1"]
[TimeControl "40/6000+30:20/3000+30:900+30"]

{[%evp 27,82,0,19,18,27,30,24,16,21,-19,42,-11,24,11,30,0,10,7,26,-8,24,23,46,36,41,38,57,50,47,34,28,0,0,-19,17,0,0,0,0,0,0,0,271,224,360,383,370,361,647,697,706,681,740,737,1185,1132,1070]} 1. e4 {[%emt 0:00:05]} c5 {[%emt 0:00:05]} 2. Nf3 {[%emt 0:00:08]} d6 {[%emt 0:00:03]} 3. d4 {[%emt 0:00:09]} cxd4 {[%emt 0:00:04]} 4. Nxd4 {[%emt 0:00:07]} Nf6 {[%emt 0:00:03]} 5. Nc3 {[%emt 0:00:11]} a6 {[%emt 0:00:03]} 6. Be3 {[%emt 0:00:14]} e5 {[%emt 0:00:14]} 7. Nb3 {[%emt 0:00:08]} Be6 {[%emt 0:01:15]} 8. Be2 {[%emt 0:00:10]} Be7 {[%emt 0:01:56]} 9. O-O {[%emt 0:00:11]} O-O {[%emt 0:01:27]} 10. Qd2 {[%emt 0:00:07]} Nbd7 {[%emt 0:12:30]} 11. a4 {[%emt 0:00:42][%cal Ba2a4,Ba4a5][%mdl 32]} Nb6 {[%emt 0:06:19]} 12. a5 {[%emt 0:01:35]} Nc4 {[%emt 0:00:31]} 13. Bxc4 {[%emt 0:00:10]} Bxc4 {[%emt 0:00:04]} 14. Rfd1 {[%emt 0:00:17]} h6 {[%emt 0:07:22]} 15. f3 {[%emt 0:01:00] B92: Sicilian Najdorf: 6 Be2.} Rc8 {[%emt 0:02:04]} 16. Nc1 {[%emt 0:04:27]} Be6 {[%emt 0:15:52]} 17. N1e2 {[%emt 0:08:45] White has an edge.} (17. Bb6 $5 {[%cal Rb6d8]} Qe8 18. Be3 $11) 17... Qc7 {[%emt 0:05:06][%cal Od6d5] [#]} 18. Ng3 $146 {[%emt 0:11:05]} ({Predecessor:} 18. Bb6 Qc4 19. Kh1 Nd7 20. Bg1 Qc6 {½-½ (20) Ness,H (2473)-Roubaud,D (2572) ICCF email 2011}) 18... Rfe8 {[%emt 0:03:59]} (18... d5 $11 19. exd5 Rfd8) 19. h3 {[%emt 0:02:46]} (19. Nf1 $14) 19... Qc6 {[%emt 0:04:47]} (19... d5 $5 20. exd5 Red8 $15) 20. Kh2 {[%emt 0:04:03]} Kh7 {[%emt 0:10:01]} 21. Rac1 {[%emt 0:04:44]} Qc4 {[%emt 0:06:41]} 22. Nge2 {[%emt 0:00:39]} Rcd8 {[%emt 0:07:17]} 23. b3 {[%emt 0:06:34]} Qc8 {[%emt 0:04:19]} 24. Nd5 {[%emt 0:10:33]} Nxd5 {[%emt 0:00:55]} 25. exd5 {[%emt 0:00:12]} Bf5 {[%emt 0:00:06]} 26. c4 {[%emt 0:00:41][%cal Bc2c4,Bc4c5][%mdl 32]} Bg6 {[%emt 0:02:18]} 27. b4 {[%emt 0:11:02]} Qd7 {[%emt 0:00:08]} 28. c5 {[%emt 0:02:31]} Rc8 {[%emt 0:00:04] Inhibits c6.} 29. Kh1 {[%emt 0:05:08]} Red8 {[%emt 0:01:31]} 30. Qa2 {[%emt 0:04:21]} f5 {[%emt 0:05:43]} (30... e4 $5 {[%cal Re4f3]} 31. f4 f5 $15) 31. Nc3 {[%emt 0:06:57][%cal Be2c3,Bc3a4,Ba4c5,Bc5e6][%mdl 32]} dxc5 {[%emt 0:04:59]} 32. d6 $1 {[%emt 0:05:31]} Bg5 {[%emt 0:00:07]} (32... Bxd6 $2 33. bxc5 Rc6 34. cxd6 $18) 33. Bxg5 {[%emt 0:01:22]} hxg5 {[%emt 0:00:04]} 34. Na4 {[%emt 0:00:44]} cxb4 $2 {[%emt 0:00:53][%mdl 8192] [#]} (34... Bf7 $1 $11 35. Qa1 cxb4) 35. Nc5 $1 $18 {[%emt 0:01:10]} Qb5 {[%emt 0:02:28] [#]} (35... Qf7 $142 36. Ne6 Rxc1 37. Rxc1 Kh6) 36. Ne6 $1 {[%emt 0:02:54][%csl LRd8,LRg5]} Rxc1 {[%emt 0:03:34]} 37. Rxc1 {[%emt 0:00:09]} b3 $2 {[%emt 0:00:09]} (37... Rxd6 $2 38. Nf8+ Kh8 39. Nxg6+ Kh7 40. Nf8+ Kh8 41. Qf7 $18) (37... Re8 38. Nc7 Qd3) 38. Qd2 {[%emt 0:02:59] White is clearly winning.} f4 {[%emt 0:03:55][%cal Ob3b2] aiming for ...b2!} 39. Nxd8 {[%emt 0:00:37]} b2 {[%emt 0:00:01] [#]} 40. Ne6 $1 {[%emt 0:00:24]} Bf5 {[%emt 0:01:00]} (40... Kh6 41. Rd1) 41. d7 {[%emt 0:52:55] Black must now prevent Nf8+.} ({Weaker is} 41. Nxg5+ Kg6 42. Rg1 b1=Q 43. Rxb1 Qxb1+ 44. Kh2 Kxg5 $11) 41... Qxa5 {[%emt 0:12:23] Weighted Error Value: White=0.10 (very precise) /Black=0.50} 1-0

[Event "55th Biel Festival GMT Classical 2022"]
[Site "Biel"]
[Date "2022.07.22"]
[Round "7.4"]
[White "Kamsky, Gata"]
[Black "Abdusattorov, Nodirbek"]
[Result "1-0"]
[ECO "B38"]
[WhiteElo "2655"]
[BlackElo "2688"]
[Annotator "TA"]
[PlyCount "79"]
[EventDate "2022.07.14"]
[EventType "tourn"]
[EventCountry "SUI"]
[SourceTitle "playchess.com"]
[Source "ChessBase"]
[SourceQuality "1"]
[TimeControl "40/6000+30:20/3000+30:900+30"]

{[%evp 11,79,27,57,28,20,17,39,10,16,0,0,0,9,2,43,39,47,38,44,39,43,24,52,59,72,62,93,104,91,98,103,96,103,113,96,106,111,111,174,152,126,122,115,95,141,121,168,137,178,205,279,253,264,229,267,303,300,298,283,297,286,294,421,416,498,496,592,570,582,572]} 1. e4 {[%emt 0:00:05]} c5 {[%emt 0:00:36]} 2. Nf3 {[%emt 0:00:46]} Nc6 {[%emt 0:00:39]} 3. d4 {[%emt 0:02:07]} cxd4 {[%emt 0:00:54]} 4. Nxd4 {[%emt 0:00:05]} g6 {[%emt 0:00:18]} 5. c4 {[%emt 0:00:20]} Bg7 {[%emt 0:00:18]} 6. Be3 {[%emt 0:00:07]} Qb6 {[%emt 0:00:10][%cal Rc6d4] is now more promising than 6...Nf6.} 7. Nb5 {[%emt 0:00:21] B38: Sicilian: Maroczy Bind with 5...Bg7 and 7...0-0.} (7. Nb3 $5 {[%cal Re3b6]} Qc7 8. Qd2 $14 (8. Nc3 Bxc3+ 9. bxc3 Nf6 $11)) 7... Qa5+ {[%emt 0:00:51]} 8. N5c3 {[%emt 0:00:06]} (8. N1c3 Nf6 9. f3 O-O 10. Qd2 a6 11. Nd4 d6 12. Be2 Nxd4 13. Bxd4 Be6 14. O-O Rfc8 15. b3 b5 16. cxb5 axb5 17. Rfd1 Bd7 18. Rac1 b4 19. Na4 Bxa4 20. bxa4 Qxa4 21. Bc4 Bh6 22. Bxf7+ Kg7 23. Bxf6+ exf6 24. f4 Qa7+ {0-1 (24) Kamsky,G (2661)-Abdusattorov,N (2661) Chess.com INT 2022}) 8... Qb4 {[%emt 0:04:43]} 9. Qd2 {[%emt 0:19:50] White is slightly better.} d6 {[%emt 0:04:52]} 10. Be2 {[%emt 0:10:24]} Nf6 {[%emt 0:00:41][%cal Of6e4]} 11. f3 {[%emt 0:06:53]} Be6 {[%emt 0:09:00]} 12. O-O {[%emt 0:00:57]} O-O {[%emt 0:04:17]} (12... Bxc4 $2 13. a3 Qa5 14. Bxc4 $18) 13. a3 {[%emt 0:00:35]} Qa5 {[%emt 0:00:40]} 14. Ra2 {[%emt 0:15:53]} Rfc8 {[%emt 0:14:29] [#]} 15. b3 $146 {[%emt 0:02:56][%cal Bb2b3,Bb3b4,Bb4c5][%mdl 32]} ({Predecessor:} 15. b4 Qd8 16. Nd5 Ne5 17. Rc2 Nfd7 18. f4 Ng4 19. Bxg4 Bxg4 20. f5 gxf5 21. exf5 {1-0 (37) Murphy,C (2336)-Young,D (1962) Hull 2018}) 15... Qd8 {[%emt 0:05:54]} 16. Rc1 {[%emt 0:01:05]} Nd7 {[%emt 0:03:08]} 17. Qd1 {[%emt 0:02:14]} a6 {[%emt 0:02:02][%cal Ob7b5]} 18. Nd5 {[%emt 0:01:40]} Na5 {[%emt 0:06:43][%cal Ob7b5]} 19. b4 {[%emt 0:08:15]} Nc6 {[%emt 0:00:18]} 20. Nbc3 {[%emt 0:00:40]} Nce5 {[%emt 0:15:05]} 21. Na4 {[%emt 0:01:17]} Rab8 {[%emt 0:02:57]} 22. c5 {[%emt 0:05:46]} dxc5 {[%emt 0:05:33]} 23. bxc5 {[%emt 0:00:10]} Qf8 {[%emt 0:00:30]} 24. Rd2 {[%emt 0:00:13] White is much more active.} Rd8 {[%emt 0:04:10]} (24... Nf6 $16 {might work better.} 25. Rb1 Qe8) 25. f4 {[%emt 0:02:54]} Nc6 {[%emt 0:00:24]} 26. Bf3 {[%emt 0:00:20]} Na5 {[%emt 0:05:05]} 27. Rd3 {[%emt 0:01:56]} Nf6 {[%emt 0:03:55]} (27... Kh8 $142) 28. Nab6 {[%emt 0:00:40]} Nd7 {[%emt 0:02:48]} (28... Kh8 $16 {is a better defense.} 29. Rd2 Nd7) 29. e5 $18 {[%emt 0:05:24]} Bh6 {[%emt 0:03:18]} 30. Qe1 {[%emt 0:06:14]} Bf5 {[%emt 0:00:44] [#]} 31. Rdd1 {[%emt 0:00:56]} Nc6 {[%emt 0:00:50]} 32. Nc7 {[%emt 0:02:22]} Ncxe5 {[%emt 0:05:20]} 33. fxe5 {[%emt 0:00:21]} Nxe5 {[%emt 0:00:02]} 34. Bxh6 {[%emt 0:00:40]} Nxf3+ {[%emt 0:00:05]} 35. gxf3 {[%emt 0:00:03]} Qxh6 {[%emt 0:00:07]} 36. Ncd5 {[%emt 0:00:05][%cal Bc7d5,Bd5f4,Bf4e6][%mdl 32]} ({Resist} 36. Qxe7 Rd2 37. h4 Qf4 38. Rxd2 Qxd2 $18) 36... Be6 {[%emt 0:00:50]} (36... Qg5+ $142 37. Qg3 Qxg3+ 38. hxg3 Kg7 39. Nxe7 Rxd1+ 40. Rxd1 Be6) 37. Qe5 {[%emt 0:01:36]} Qf8 {[%emt 0:02:33]} 38. Re1 {[%emt 0:02:04] White is clearly winning.} h5 {[%emt 0:02:29]} 39. Nf4 {[%emt 0:02:35]} Kh7 {[%emt 0:00:02]} 40. Nxe6 {[%emt 0:00:19] Weighted Error Value: White=0.05 (flawless) /Black=0.24 (precise)} 1-0